[Event "*** Titled Tuesday Blitz"]
[Site "Chess.com"]
[Date "2021.04.20"]
[Round "6"]
[White "Politov_Pavel"]
[Black "Grineva_Marianna"]
[Result "0-1"]
[WhiteElo "2332"]
[BlackElo "2227"]
[TimeControl "180+1"]
[EndTime "11:06:59 PDT"]
[Termination "Grineva_Marianna won by resignation"]

1. d4 {[%clk 0:03:00.9]} 1... d6 {[%clk 0:03:00.3]} 2. Nc3 {[%clk 0:03:01.3]}
2... Nd7 {[%clk 0:03:00.3]} 3. e4 {[%clk 0:03:01.2]} 3... Ngf6 {[%clk
0:03:00.1]} 4. Bg5 {[%clk 0:02:56.7]} 4... h6 {[%clk 0:02:47.7]} 5. Bh4 {[%clk
0:02:55.8]} 5... g5 {[%clk 0:02:47.4]} 6. Bg3 {[%clk 0:02:54.8]} 6... Bg7 {[%clk
0:02:47.3]} 7. Be2 {[%clk 0:02:50.2]} 7... c6 {[%clk 0:02:37.6]} 8. h4 {[%clk
0:02:49]} 8... b5 {[%clk 0:02:25.5]} 9. hxg5 {[%clk 0:02:47.1]} 9... hxg5 {[%clk
0:02:26.4]} 10. Rxh8+ {[%clk 0:02:47]} 10... Bxh8 {[%clk 0:02:26.5]} 11. a3
{[%clk 0:02:43.3]} 11... Nb6 {[%clk 0:02:23.3]} 12. Nf3 {[%clk 0:02:42.4]} 12...
g4 {[%clk 0:02:14.5]} 13. Nh2 {[%clk 0:02:37.3]} 13... Nc4 {[%clk 0:02:09.5]}
14. b3 {[%clk 0:02:31.6]} 14... Nb6 {[%clk 0:02:08.7]} 15. Qd2 {[%clk
0:02:17.6]} 15... Be6 {[%clk 0:02:00.4]} 16. O-O-O {[%clk 0:02:00]} 16... a6
{[%clk 0:01:16.8]} 17. Qh6 {[%clk 0:01:24.3]} 17... Kd7 {[%clk 0:01:10.9]} 18.
d5 {[%clk 0:01:14.9]} 18... cxd5 {[%clk 0:01:06.5]} 19. e5 {[%clk 0:01:13.1]}
19... dxe5 {[%clk 0:00:33.7]} 20. Bxe5 {[%clk 0:01:13]} 20... Rc8 {[%clk
0:00:29.7]} 21. Nxb5 {[%clk 0:01:07.2]} 21... axb5 {[%clk 0:00:17]} 22. Bxb5+
{[%clk 0:01:07]} 22... Rc6 {[%clk 0:00:17.5]} 23. c4 {[%clk 0:00:35.9]} 23...
Qg8 {[%clk 0:00:10.2]} 24. Qe3 {[%clk 0:00:27.8]} 24... Qd8 {[%clk 0:00:05.8]}
25. Bd4 {[%clk 0:00:20.2]} 25... Nc8 {[%clk 0:00:04.9]} 26. Kb1 {[%clk
0:00:13.3]} 26... Nd6 {[%clk 0:00:04]} 27. Bxc6+ {[%clk 0:00:08.8]} 27... Kxc6
{[%clk 0:00:04.9]} 28. cxd5+ {[%clk 0:00:09.1]} 28... Nxd5 {[%clk 0:00:04.6]}
29. Rc1+ {[%clk 0:00:08.3]} 29... Kd7 {[%clk 0:00:04.2]} 30. Qd3 {[%clk
0:00:08.4]} 30... Bxd4 {[%clk 0:00:03.2]} 31. Qxd4 {[%clk 0:00:08.1]} 31... Qb8
{[%clk 0:00:03]} 32. b4 {[%clk 0:00:07.3]} 32... Nb5 {[%clk 0:00:02.5]} 33. Kb2
{[%clk 0:00:05.2]} 33... Nxd4 {[%clk 0:00:01.1]} 34. Rc5 {[%clk 0:00:04.5]}
34... Qb5 {[%clk 0:00:01.6]} 35. f3 {[%clk 0:00:03.2]} 35... Qxc5 {[%clk
0:00:01.1]} 36. bxc5 {[%clk 0:00:03]} 36... gxf3 {[%clk 0:00:01.7]} 37. gxf3
{[%clk 0:00:03.3]} 37... Kc6 {[%clk 0:00:02]} 38. f4 {[%clk 0:00:01.9]} 38...
Ne3 {[%clk 0:00:02]} 39. Nf1 {[%clk 0:00:02.6]} 39... Ndf5 {[%clk 0:00:02.6]}
40. Nd2 {[%clk 0:00:02.4]} 40... Kxc5 {[%clk 0:00:03.1]} 41. Ne4+ {[%clk
0:00:03]} 41... Kd4 {[%clk 0:00:03.4]} 42. Ng5 {[%clk 0:00:03.6]} 42... Nc4+
{[%clk 0:00:03.8]} 43. Kb3 {[%clk 0:00:03.6]} 43... Nfe3 {[%clk 0:00:04.4]} 44.
Kb4 {[%clk 0:00:04.5]} 44... Bd5 {[%clk 0:00:04.2]} 45. a4 {[%clk 0:00:05.4]}
45... f6 {[%clk 0:00:04.5]} 46. Nh7 {[%clk 0:00:05.1]} 46... Nb2 {[%clk
0:00:04.3]} 47. Nf8 {[%clk 0:00:06]} 47... Nc2+ {[%clk 0:00:04.5]} 48. Kb5
{[%clk 0:00:06.2]} 48... Nxa4 {[%clk 0:00:05.2]} 49. Kxa4 {[%clk 0:00:06.4]}
49... e5 {[%clk 0:00:05.6]} 50. Kb5 {[%clk 0:00:07.3]} 50... e4 {[%clk
0:00:05.8]} 51. Nh7 {[%clk 0:00:06.2]} 51... e3 {[%clk 0:00:06.4]} 52. Nxf6
{[%clk 0:00:06.6]} 52... e2 {[%clk 0:00:07]} 53. Ng4 {[%clk 0:00:05.1]} 53...
e1=Q {[%clk 0:00:06.7]} 54. Kb6 {[%clk 0:00:02.3]} 54... Qf1 {[%clk 0:00:07.2]}
55. Kc7 {[%clk 0:00:03.2]} 55... Qxf4+ {[%clk 0:00:07.2]} 56. Kb6 {[%clk
0:00:02.5]} 56... Qxg4 {[%clk 0:00:07.5]} 57. Kb5 {[%clk 0:00:03.4]} 57... Qe4
{[%clk 0:00:08]} 58. Kb6 {[%clk 0:00:04.3]} 58... Ne3 {[%clk 0:00:08.6]} 59. Kc7
{[%clk 0:00:05.2]} 59... Bc4 {[%clk 0:00:09.1]} 60. Kb6 {[%clk 0:00:06.1]} 60...
Qe6+ {[%clk 0:00:09.4]} 61. Ka7 {[%clk 0:00:07]} 61... Qa6+ {[%clk 0:00:09.6]}
62. Kb8 {[%clk 0:00:06.6]} 62... Qb6+ {[%clk 0:00:09.8]} 63. Kc8 {[%clk
0:00:06.8]} 63... Qe6+ {[%clk 0:00:09.9]} 64. Kd8 {[%clk 0:00:07.7]} 64... Qf7
{[%clk 0:00:09.9]} 65. Kc8 {[%clk 0:00:07.9]} 65... Nd5 {[%clk 0:00:10.4]} 66.
Kb8 {[%clk 0:00:06.7]} 66... Kc5 {[%clk 0:00:10.9]} 67. Ka8 {[%clk 0:00:06.7]}
67... Kb6 {[%clk 0:00:11.5]} 0-1

[Event "*** Titled Tuesday Blitz"]
[Site "Chess.com"]
[Date "2021.04.20"]
[Round "6"]
[White "Mikhail_Golubev"]
[Black "ChessLover0108"]
[Result "0-1"]
[WhiteElo "2587"]
[BlackElo "2724"]
[TimeControl "180+1"]
[EndTime "11:07:10 PDT"]
[Termination "ChessLover0108 won on time"]

1. e4 {[%clk 0:03:00.9]} 1... c5 {[%clk 0:02:55.8]} 2. Nf3 {[%clk 0:03:00.4]}
2... d6 {[%clk 0:02:55.7]} 3. d4 {[%clk 0:03:00]} 3... cxd4 {[%clk 0:02:56.3]}
4. Nxd4 {[%clk 0:03:00.7]} 4... Nf6 {[%clk 0:02:56.2]} 5. Nc3 {[%clk 0:03:00.7]}
5... a6 {[%clk 0:02:56.3]} 6. Bc4 {[%clk 0:03:00.6]} 6... e6 {[%clk 0:02:56.2]}
7. O-O {[%clk 0:03:00.6]} 7... b5 {[%clk 0:02:54]} 8. Bb3 {[%clk 0:03:00.2]}
8... Be7 {[%clk 0:02:54.3]} 9. f4 {[%clk 0:02:57.6]} 9... O-O {[%clk 0:02:52]}
10. e5 {[%clk 0:02:57]} 10... dxe5 {[%clk 0:02:52.9]} 11. fxe5 {[%clk
0:02:57.2]} 11... Bc5 {[%clk 0:02:53.8]} 12. Be3 {[%clk 0:02:51.2]} 12... Nfd7
{[%clk 0:02:52.1]} 13. Ne4 {[%clk 0:02:47.7]} 13... Bxd4 {[%clk 0:02:37.6]} 14.
Qxd4 {[%clk 0:02:43.6]} 14... Nc6 {[%clk 0:02:37.2]} 15. Qc3 {[%clk 0:02:43.7]}
15... Ncxe5 {[%clk 0:02:27.2]} 16. Bd4 {[%clk 0:02:31.9]} 16... b4 {[%clk
0:02:12.4]} 17. Qg3 {[%clk 0:02:28.9]} 17... Ng6 {[%clk 0:02:10.9]} 18. Nd6
{[%clk 0:02:18.1]} 18... Qh4 {[%clk 0:01:40.1]} 19. Qxh4 {[%clk 0:01:55.3]}
19... Nxh4 {[%clk 0:01:41]} 20. Nxf7 {[%clk 0:01:55.3]} 20... Rxf7 {[%clk
0:01:36.3]} 21. Bxe6 {[%clk 0:01:53.7]} 21... Ne5 {[%clk 0:01:35.3]} 22. Bd5
{[%clk 0:01:39.9]} 22... Bb7 {[%clk 0:00:55.3]} 23. Bxb7 {[%clk 0:01:38.2]}
23... Rxb7 {[%clk 0:00:56.2]} 24. Bxe5 {[%clk 0:01:38.3]} 24... Rc8 {[%clk
0:00:57.1]} 25. c3 {[%clk 0:01:36.5]} 25... h6 {[%clk 0:00:52.4]} 26. Bd4 {[%clk
0:01:29.7]} 26... a5 {[%clk 0:00:40.3]} 27. Rae1 {[%clk 0:01:26.1]} 27... Rb5
{[%clk 0:00:28.2]} 28. Re5 {[%clk 0:01:07.2]} 28... Rxe5 {[%clk 0:00:14.8]} 29.
Bxe5 {[%clk 0:01:08.1]} 29... Re8 {[%clk 0:00:14.3]} 30. Bg3 {[%clk 0:01:01.3]}
30... Ng6 {[%clk 0:00:14.7]} 31. Re1 {[%clk 0:00:56.5]} 31... Rc8 {[%clk
0:00:09.2]} 32. cxb4 {[%clk 0:00:53.8]} 32... axb4 {[%clk 0:00:10.1]} 33. Kf2
{[%clk 0:00:51.6]} 33... Kf7 {[%clk 0:00:08.7]} 34. Re4 {[%clk 0:00:50.4]} 34...
Rc2+ {[%clk 0:00:08]} 35. Re2 {[%clk 0:00:50.7]} 35... Rc4 {[%clk 0:00:07.6]}
36. b3 {[%clk 0:00:50.4]} 36... Rc6 {[%clk 0:00:05.6]} 37. Ke3 {[%clk
0:00:49.3]} 37... Ne7 {[%clk 0:00:05.7]} 38. Kd3 {[%clk 0:00:44.9]} 38... Nf5
{[%clk 0:00:04.4]} 39. Be1 {[%clk 0:00:44.3]} 39... Rd6+ {[%clk 0:00:03.7]} 40.
Kc4 {[%clk 0:00:42.5]} 40... Rd4+ {[%clk 0:00:02.7]} 41. Kc5 {[%clk 0:00:40.2]}
41... Rf4 {[%clk 0:00:02.4]} 42. Bxb4 {[%clk 0:00:38]} 42... Nd4 {[%clk
0:00:02.6]} 43. Rd2 {[%clk 0:00:31.9]} 43... Ne6+ {[%clk 0:00:02.8]} 44. Kb5
{[%clk 0:00:31.9]} 44... Nd4+ {[%clk 0:00:03.2]} 45. Ka4 {[%clk 0:00:19.9]}
45... Nc6 {[%clk 0:00:03]} 46. a3 {[%clk 0:00:20.1]} 46... g5 {[%clk 0:00:01.7]}
47. Kb5 {[%clk 0:00:19.3]} 47... Nd4+ {[%clk 0:00:01.7]} 48. Ka4 {[%clk
0:00:17.2]} 48... Ke6 {[%clk 0:00:02.4]} 49. g3 {[%clk 0:00:10.8]} 49... Re4
{[%clk 0:00:02.8]} 50. Rd3 {[%clk 0:00:10.3]} 50... g4 {[%clk 0:00:03.1]} 51.
Bc3 {[%clk 0:00:08.3]} 51... Nf3+ {[%clk 0:00:03.4]} 52. b4 {[%clk 0:00:07.9]}
52... Nxh2 {[%clk 0:00:04.3]} 53. Kb3 {[%clk 0:00:07.2]} 53... Nf3 {[%clk
0:00:05.2]} 54. a4 {[%clk 0:00:06.1]} 54... h5 {[%clk 0:00:06.1]} 55. a5 {[%clk
0:00:05.3]} 55... h4 {[%clk 0:00:03.1]} 56. gxh4 {[%clk 0:00:05.4]} 56... Rf4
{[%clk 0:00:04]} 57. a6 {[%clk 0:00:05.3]} 57... g3 {[%clk 0:00:04.4]} 58. Re3+
{[%clk 0:00:05.3]} 58... Kf5 {[%clk 0:00:03.5]} 59. Re2 {[%clk 0:00:06]} 59...
Rg4 {[%clk 0:00:01.8]} 60. a7 {[%clk 0:00:05.9]} 60... Rg8 {[%clk 0:00:02.5]}
61. b5 {[%clk 0:00:04.6]} 61... Kg4 {[%clk 0:00:02.3]} 62. b6 {[%clk 0:00:04]}
62... Ng1 {[%clk 0:00:01.8]} 63. Rg2 {[%clk 0:00:03.2]} 63... Kf3 {[%clk
0:00:01.9]} 64. Rxg1 {[%clk 0:00:02.6]} 64... g2 {[%clk 0:00:02]} 0-1

[Event "*** Titled Tuesday Blitz"]
[Site "Chess.com"]
[Date "2021.04.20"]
[Round "6"]
[White "PowerThinking2650"]
[Black "prachiti01"]
[Result "1/2-1/2"]
[WhiteElo "2392"]
[BlackElo "2217"]
[TimeControl "180+1"]
[EndTime "11:07:12 PDT"]
[Termination "Game drawn by agreement"]

1. e4 {[%clk 0:03:00.9]} 1... e6 {[%clk 0:03:00]} 2. d4 {[%clk 0:03:00.6]} 2...
d5 {[%clk 0:03:00.6]} 3. Nd2 {[%clk 0:03:01]} 3... Nc6 {[%clk 0:02:59.2]} 4.
Ngf3 {[%clk 0:03:00.1]} 4... Nf6 {[%clk 0:02:58.1]} 5. e5 {[%clk 0:03:00.3]}
5... Nd7 {[%clk 0:02:58.1]} 6. Be2 {[%clk 0:03:00.7]} 6... f6 {[%clk 0:02:57.7]}
7. exf6 {[%clk 0:02:57.8]} 7... Qxf6 {[%clk 0:02:57.4]} 8. Nf1 {[%clk
0:02:58.2]} 8... Bd6 {[%clk 0:02:56.5]} 9. Ne3 {[%clk 0:02:58.5]} 9... h6 {[%clk
0:02:50.1]} 10. O-O {[%clk 0:02:55.1]} 10... O-O {[%clk 0:02:49.6]} 11. c4
{[%clk 0:02:55.1]} 11... e5 {[%clk 0:02:35]} 12. Nxd5 {[%clk 0:02:48.2]} 12...
Qf7 {[%clk 0:02:32.7]} 13. c5 {[%clk 0:02:06.9]} 13... Qxd5 {[%clk 0:02:18.9]}
14. cxd6 {[%clk 0:02:06.6]} 14... Qxd6 {[%clk 0:02:16.2]} 15. dxe5 {[%clk
0:02:05.8]} 15... Qxd1 {[%clk 0:02:14.2]} 16. Rxd1 {[%clk 0:02:04.5]} 16...
Ndxe5 {[%clk 0:02:14.2]} 17. Nxe5 {[%clk 0:01:59.1]} 17... Nxe5 {[%clk
0:02:15.1]} 18. Be3 {[%clk 0:01:55.7]} 18... Bg4 {[%clk 0:02:06]} 19. f3 {[%clk
0:01:43.3]} 19... Bf5 {[%clk 0:02:01.4]} 20. Rac1 {[%clk 0:01:41.9]} 20... c6
{[%clk 0:01:48.9]} 21. Bd4 {[%clk 0:01:35.7]} 21... Ng6 {[%clk 0:01:45.1]} 22.
Bc4+ {[%clk 0:01:30.5]} 22... Kh7 {[%clk 0:01:43.5]} 23. Bc5 {[%clk 0:01:25.6]}
23... Rfd8 {[%clk 0:01:37.3]} 24. g3 {[%clk 0:01:18.5]} 24... b6 {[%clk
0:01:32.7]} 25. Bd6 {[%clk 0:01:13.7]} 25... h5 {[%clk 0:01:22.6]} 26. Kf2
{[%clk 0:01:10.9]} 26... Rd7 {[%clk 0:01:21.5]} 27. Bb4 {[%clk 0:00:39.5]} 27...
Rad8 {[%clk 0:01:20.6]} 28. Rxd7 {[%clk 0:00:38.7]} 28... Rxd7 {[%clk 0:01:21]}
29. Be2 {[%clk 0:00:37]} 29... c5 {[%clk 0:01:19.2]} 30. Bc3 {[%clk 0:00:37.2]}
30... Ne7 {[%clk 0:01:13.3]} 31. Rd1 {[%clk 0:00:34.5]} 31... Rxd1 {[%clk
0:01:12.1]} 32. Bxd1 {[%clk 0:00:35.4]} 32... Be6 {[%clk 0:01:11.5]} 33. a3
{[%clk 0:00:33.8]} 33... Nc6 {[%clk 0:01:05.6]} 34. Ke3 {[%clk 0:00:31.9]} 34...
Kg6 {[%clk 0:01:01.2]} 35. Ba4 {[%clk 0:00:27.2]} 35... Bd5 {[%clk 0:00:52]} 36.
Bc2+ {[%clk 0:00:24.7]} 36... Kh6 {[%clk 0:00:48.5]} 37. Be4 {[%clk 0:00:23.3]}
37... Ne7 {[%clk 0:00:45.2]} 38. Be5 {[%clk 0:00:19.5]} 38... Be6 {[%clk
0:00:40.3]} 39. f4 {[%clk 0:00:17.7]} 39... g6 {[%clk 0:00:38.8]} 40. Bb8 {[%clk
0:00:15.5]} 40... a6 {[%clk 0:00:34.6]} 41. Bc7 {[%clk 0:00:15.6]} 41... b5
{[%clk 0:00:33.4]} 42. Bd6 {[%clk 0:00:15.7]} 42... Nf5+ {[%clk 0:00:33.2]} 43.
Bxf5 {[%clk 0:00:16]} 43... Bxf5 {[%clk 0:00:33.2]} 44. Bxc5 {[%clk 0:00:16.7]}
44... a5 {[%clk 0:00:30.3]} 45. Bb6 {[%clk 0:00:16.4]} 45... a4 {[%clk
0:00:30.4]} 46. Bd8 {[%clk 0:00:16.5]} 46... Kg7 {[%clk 0:00:29.7]} 47. Kd4
{[%clk 0:00:16.7]} 47... Kf7 {[%clk 0:00:28.9]} 48. Ke5 {[%clk 0:00:17]} 48...
Bd3 {[%clk 0:00:28.3]} 49. Ba5 {[%clk 0:00:16.7]} 49... Bc4 {[%clk 0:00:27.7]}
50. Bc3 {[%clk 0:00:16.1]} 50... Bf1 {[%clk 0:00:27]} 51. f5 {[%clk 0:00:15.6]}
51... gxf5 {[%clk 0:00:25.4]} 52. Kxf5 {[%clk 0:00:16.5]} 52... Be2 {[%clk
0:00:25.2]} 53. Kg5 {[%clk 0:00:16.5]} 53... Kg8 {[%clk 0:00:24.1]} 54. h3
{[%clk 0:00:16.1]} 54... Kh7 {[%clk 0:00:24]} 55. g4 {[%clk 0:00:15.1]} 55...
hxg4 {[%clk 0:00:23.7]} 56. hxg4 {[%clk 0:00:15.8]} 56... Kg8 {[%clk 0:00:23.8]}
57. Kf5 {[%clk 0:00:15.8]} 57... Bc4 {[%clk 0:00:23.8]} 58. g5 {[%clk
0:00:15.7]} 58... Bd3+ {[%clk 0:00:23.9]} 59. Kf6 {[%clk 0:00:16]} 59... Bc4
{[%clk 0:00:23.9]} 60. Ke7 {[%clk 0:00:14.7]} 60... Bf1 {[%clk 0:00:23.7]} 61.
g6 {[%clk 0:00:15]} 61... Be2 {[%clk 0:00:24]} 62. g7 {[%clk 0:00:15.5]} 62...
Bf1 {[%clk 0:00:24.3]} 63. Kd6 {[%clk 0:00:16]} 63... Be2 {[%clk 0:00:24.5]} 64.
Kc5 {[%clk 0:00:16.6]} 64... Bf1 {[%clk 0:00:24.6]} 65. Be5 {[%clk 0:00:16.4]}
65... Be2 {[%clk 0:00:24.4]} 66. Kb4 {[%clk 0:00:16.2]} 66... Bf1 {[%clk
0:00:24.3]} 67. Kc3 {[%clk 0:00:16]} 67... Be2 {[%clk 0:00:23.9]} 68. Kd2 {[%clk
0:00:16.5]} 68... Bc4 {[%clk 0:00:23.8]} 69. Bf6 {[%clk 0:00:15]} 69... Bf1
{[%clk 0:00:23.2]} 70. Ke1 {[%clk 0:00:14.9]} 70... Bc4 {[%clk 0:00:23.6]} 71.
Be5 {[%clk 0:00:15.8]} 71... Kf7 {[%clk 0:00:23.3]} 72. Kd2 {[%clk 0:00:15]}
72... Kg8 {[%clk 0:00:23.4]} 73. Kc3 {[%clk 0:00:14.9]} 73... Kf7 {[%clk
0:00:23.5]} 74. b4 {[%clk 0:00:12.7]} 74... Kg8 {[%clk 0:00:21.3]} 75. Kd4
{[%clk 0:00:12.3]} 75... Kf7 {[%clk 0:00:20.5]} 76. Kc5 {[%clk 0:00:12.3]}
1/2-1/2

[Event "*** Titled Tuesday Blitz"]
[Site "Chess.com"]
[Date "2021.04.20"]
[Round "6"]
[White "gmcorrales"]
[Black "Anna_ChessMate"]
[Result "0-1"]
[WhiteElo "2788"]
[BlackElo "2570"]
[TimeControl "180+1"]
[EndTime "11:07:22 PDT"]
[Termination "Anna_ChessMate won by resignation"]

1. e4 {[%clk 0:02:59.4]} 1... c6 {[%clk 0:02:59.4]} 2. d4 {[%clk 0:02:58.5]}
2... d5 {[%clk 0:03:00.3]} 3. e5 {[%clk 0:02:59.1]} 3... Bf5 {[%clk 0:02:59.7]}
4. h4 {[%clk 0:02:59.6]} 4... h5 {[%clk 0:02:58.6]} 5. c4 {[%clk 0:03:00.2]}
5... e6 {[%clk 0:02:58.3]} 6. Nc3 {[%clk 0:03:00.8]} 6... Nd7 {[%clk 0:02:56.5]}
7. cxd5 {[%clk 0:03:00.4]} 7... cxd5 {[%clk 0:02:53.9]} 8. Bd3 {[%clk
0:03:00.9]} 8... Ne7 {[%clk 0:02:53]} 9. Nb5 {[%clk 0:02:48]} 9... Nc6 {[%clk
0:02:34.6]} 10. Bxf5 {[%clk 0:02:47]} 10... exf5 {[%clk 0:02:35.5]} 11. Nf3
{[%clk 0:02:47.1]} 11... Be7 {[%clk 0:02:27.4]} 12. Nc3 {[%clk 0:02:43]} 12...
Nf8 {[%clk 0:02:25.9]} 13. Qb3 {[%clk 0:02:40]} 13... Ne6 {[%clk 0:02:24.1]} 14.
Qxb7 {[%clk 0:01:51.5]} 14... Ncxd4 {[%clk 0:02:16.2]} 15. Nxd4 {[%clk
0:01:52.4]} 15... Nxd4 {[%clk 0:02:16.1]} 16. O-O {[%clk 0:01:51.8]} 16... O-O
{[%clk 0:02:12.3]} 17. Rd1 {[%clk 0:01:48.4]} 17... Nc2 {[%clk 0:02:10.7]} 18.
Rb1 {[%clk 0:01:46.7]} 18... d4 {[%clk 0:02:09.8]} 19. g3 {[%clk 0:01:06]} 19...
Rb8 {[%clk 0:01:55]} 20. Qf3 {[%clk 0:01:05.2]} 20... Qa5 {[%clk 0:01:34.2]} 21.
Nd5 {[%clk 0:01:01.4]} 21... Bd8 {[%clk 0:01:34.7]} 22. a3 {[%clk 0:00:52.6]}
22... Re8 {[%clk 0:00:43.1]} 23. Bd2 {[%clk 0:00:40.8]} 23... Qb5 {[%clk
0:00:38.6]} 24. Bf4 {[%clk 0:00:35.2]} 24... Rc8 {[%clk 0:00:36.9]} 25. Rd2
{[%clk 0:00:29.4]} 25... Nxa3 {[%clk 0:00:32.4]} 26. Rbd1 {[%clk 0:00:20.5]}
26... Nc2 {[%clk 0:00:26.7]} 27. Bg5 {[%clk 0:00:13.1]} 27... Bxg5 {[%clk
0:00:23.6]} 28. hxg5 {[%clk 0:00:14]} 28... Rxe5 {[%clk 0:00:23.9]} 29. Nf4
{[%clk 0:00:14.5]} 29... g6 {[%clk 0:00:22.1]} 30. Nd3 {[%clk 0:00:12.2]} 30...
Re7 {[%clk 0:00:21.5]} 31. Rc1 {[%clk 0:00:12]} 31... Rec7 {[%clk 0:00:22]} 32.
Qf4 {[%clk 0:00:07]} 32... Qb6 {[%clk 0:00:16.9]} 33. Ne5 {[%clk 0:00:04.3]}
33... Nb4 {[%clk 0:00:15.1]} 34. Rcd1 {[%clk 0:00:04.4]} 34... Nc2 {[%clk
0:00:10.4]} 35. Kh2 {[%clk 0:00:04]} 35... a5 {[%clk 0:00:10.4]} 36. Nf3 {[%clk
0:00:03.8]} 36... d3 {[%clk 0:00:09.3]} 37. Kg2 {[%clk 0:00:03.2]} 37... Nb4
{[%clk 0:00:08.2]} 38. Ne5 {[%clk 0:00:03.3]} 38... Rc2 {[%clk 0:00:08.4]} 39.
Nxd3 {[%clk 0:00:03]} 39... Nxd3 {[%clk 0:00:06.7]} 40. Rxd3 {[%clk 0:00:02.8]}
40... Qxb2 {[%clk 0:00:07]} 41. Rd8+ {[%clk 0:00:02.3]} 41... Kg7 {[%clk
0:00:06]} 42. Rxc8 {[%clk 0:00:01.9]} 42... Rxc8 {[%clk 0:00:06.9]} 43. Rd2
{[%clk 0:00:01.1]} 43... Qb7+ {[%clk 0:00:06.7]} 44. Kh2 {[%clk 0:00:01.9]}
44... Qe7 {[%clk 0:00:05.6]} 45. Qd4+ {[%clk 0:00:02.4]} 45... Kg8 {[%clk
0:00:06.1]} 46. Qf4 {[%clk 0:00:03]} 46... Re8 {[%clk 0:00:06.3]} 47. Rd6 {[%clk
0:00:03.4]} 47... Ra8 {[%clk 0:00:06.2]} 48. Rf6 {[%clk 0:00:03.5]} 48... a4
{[%clk 0:00:06.5]} 49. Rc6 {[%clk 0:00:03]} 49... Qe4 {[%clk 0:00:06.5]} 50. Rc7
{[%clk 0:00:03.9]} 50... Qxf4 {[%clk 0:00:06.4]} 51. gxf4 {[%clk 0:00:04.8]}
51... a3 {[%clk 0:00:07.2]} 52. Rc1 {[%clk 0:00:05.7]} 52... a2 {[%clk
0:00:07.7]} 53. Ra1 {[%clk 0:00:06.6]} 53... Ra4 {[%clk 0:00:07.7]} 54. Kg3
{[%clk 0:00:07.5]} 54... Kf8 {[%clk 0:00:08.3]} 55. Kf3 {[%clk 0:00:08]} 55...
Ke7 {[%clk 0:00:09]} 56. Ke3 {[%clk 0:00:08.9]} 56... Kd6 {[%clk 0:00:09.5]} 57.
Kd3 {[%clk 0:00:09.1]} 57... Kd5 {[%clk 0:00:08.9]} 58. Kc3 {[%clk 0:00:07.8]}
58... Rxf4 {[%clk 0:00:08.8]} 59. Rxa2 {[%clk 0:00:07.9]} 59... Rf3+ {[%clk
0:00:09.2]} 60. Kb4 {[%clk 0:00:08.3]} 60... Ke5 {[%clk 0:00:09]} 61. Ra7 {[%clk
0:00:09.2]} 61... Rxf2 {[%clk 0:00:08.9]} 62. Rxf7 {[%clk 0:00:09.3]} 62... Kf4
{[%clk 0:00:09.4]} 63. Kc5 {[%clk 0:00:08.3]} 63... Kxg5 {[%clk 0:00:09.8]} 64.
Kd4 {[%clk 0:00:09.2]} 64... h4 {[%clk 0:00:10.2]} 65. Ke3 {[%clk 0:00:10.1]}
65... Rf4 {[%clk 0:00:10.4]} 66. Rh7 {[%clk 0:00:10.4]} 66... Rf1 {[%clk
0:00:09]} 67. Ke2 {[%clk 0:00:10.5]} 67... Rf4 {[%clk 0:00:08.9]} 68. Ke3 {[%clk
0:00:10.4]} 68... Kg4 {[%clk 0:00:09.3]} 69. Ra7 {[%clk 0:00:09.3]} 69... g5
{[%clk 0:00:09.1]} 70. Ra1 {[%clk 0:00:10.2]} 70... Rf3+ {[%clk 0:00:08.8]} 71.
Ke2 {[%clk 0:00:10.1]} 71... h3 {[%clk 0:00:09.4]} 72. Rg1+ {[%clk 0:00:09.1]}
72... Rg3 {[%clk 0:00:09.8]} 73. Rh1 {[%clk 0:00:09.6]} 73... f4 {[%clk
0:00:10.1]} 74. Ra1 {[%clk 0:00:07.7]} 74... h2 {[%clk 0:00:09.4]} 75. Kf2
{[%clk 0:00:07.8]} 75... Rg1 {[%clk 0:00:08.1]} 76. Rxg1+ {[%clk 0:00:07.4]}
76... hxg1=Q+ {[%clk 0:00:09]} 77. Kxg1 {[%clk 0:00:08.3]} 77... Kf3 {[%clk
0:00:08.9]} 78. Kf1 {[%clk 0:00:08.7]} 78... g4 {[%clk 0:00:09.4]} 79. Kg1
{[%clk 0:00:09.6]} 79... Ke2 {[%clk 0:00:09.7]} 80. Kg2 {[%clk 0:00:10.5]} 80...
f3+ {[%clk 0:00:10.1]} 81. Kg3 {[%clk 0:00:11.4]} 81... f2 {[%clk 0:00:10.8]}
0-1